[Event "Open NK Rapid 2025"]
[Site "Helmond, Netherlands"]
[Date "2025.05.03"]
[Round "6.2"]
[White "Hilwerda, Jonas"]
[Black "Beerdsen, Thomas"]
[Result "0-1"]
[TimeControl "15+5"]
[WhiteFideId "1046713"]
[BlackFideId "1030108"]
[WhiteElo "2233"]
[BlackElo "2485"]

1. e4 {[%clk 00:15:07]} {[%emt 00:00:03]} c6 {[%clk 00:15:03]} {[%emt
00:00:07]} 2. d4 {[%clk 00:15:09]} {[%emt 00:00:03]} d5 {[%clk 00:15:07]}
{[%emt 00:00:02]} 3. e5 {[%clk 00:15:08]} {[%emt 00:00:06]} Bf5 {[%clk
00:15:10]} {[%emt 00:00:02]} 4. Nf3 {[%clk 00:15:11]} {[%emt 00:00:02]} e6
{[%clk 00:15:12]} {[%emt 00:00:02]} 5. Be2 {[%clk 00:15:15]} {[%emt 00:00:01]}
Ne7 {[%clk 00:15:12]} {[%emt 00:00:05]} 6. O-O {[%clk 00:15:16]} {[%emt
00:00:03]} c5 {[%clk 00:15:10]} {[%emt 00:00:08]} 7. dxc5 {[%clk 00:14:49]}
{[%emt 00:00:33]} Nec6 {[%clk 00:14:25]} {[%emt 00:00:49]} 8. c4 {[%clk
00:14:42]} {[%emt 00:00:12]} dxc4 {[%clk 00:14:09]} {[%emt 00:00:21]} 9. Qxd8+
{[%clk 00:14:21]} {[%emt 00:00:26]} Kxd8 {[%clk 00:14:09]} {[%emt 00:00:05]} 10.
Bg5+ {[%clk 00:14:22]} {[%emt 00:00:04]} Kc7 {[%clk 00:13:39]} {[%emt
00:00:36]} 11. Na3 {[%clk 00:14:26]} {[%emt 00:00:01]} Bxc5 {[%clk 00:13:33]}
{[%emt 00:00:10]} 12. Nxc4 {[%clk 00:13:23]} {[%emt 00:01:09]} Nd7 {[%clk
00:13:32]} {[%emt 00:00:05]} 13. Rac1 {[%clk 00:13:19]} {[%emt 00:00:10]} h6
{[%clk 00:12:33]} {[%emt 00:01:03]} 14. Be3 {[%clk 00:13:23]} {[%emt 00:00:02]}
Bxe3 {[%clk 00:12:29]} {[%emt 00:00:09]} 15. fxe3 {[%clk 00:13:26]} {[%emt
00:00:02]} Kb8 {[%clk 00:10:56]} {[%emt 00:01:37]} 16. Rfd1 {[%clk 00:11:31]}
{[%emt 00:02:00]} Nb6 {[%emt 00:00:09]} 17. Nd6 {[%clk 00:11:09]} {[%emt
00:00:26]} Bg6 {[%clk 00:10:56]} {[%emt 00:00:02]} 18. Nh4 {[%clk 00:10:54]}
{[%emt 00:00:20]} Nxe5 {[%clk 00:10:32]} {[%emt 00:00:29]} 19. Nxg6 {[%clk
00:10:41]} {[%emt 00:00:18]} fxg6 {[%clk 00:10:23]} {[%emt 00:00:14]} 20. Bf3
{[%clk 00:08:23]} {[%emt 00:02:23]} Nxf3+ {[%clk 00:09:03]} {[%emt 00:01:26]}
21. gxf3 {[%clk 00:08:27]} a6 {[%clk 00:08:21]} {[%emt 00:00:47]} 22. Nf7
{[%clk 00:08:23]} {[%emt 00:00:09]} Re8 {[%clk 00:08:12]} {[%emt 00:00:13]} 23.
Ne5 {[%clk 00:08:20]} {[%emt 00:00:09]} g5 {[%clk 00:06:48]} {[%emt 00:01:28]}
24. Rd6 {[%clk 00:06:40]} {[%emt 00:01:46]} Nd5 {[%clk 00:06:52]} {[%emt
00:00:01]} 25. e4 {[%clk 00:06:34]} {[%emt 00:00:11]} Nf4 {[%clk 00:06:41]}
{[%emt 00:00:15]} 26. Rc4 {[%clk 00:04:24]} {[%emt 00:02:16]} Rc8 {[%clk
00:04:26]} {[%emt 00:02:19]} 27. Rb4 {[%clk 00:03:29]} {[%emt 00:01:00]} Rc1+
{[%clk 00:04:16]} {[%emt 00:00:16]} 28. Kf2 {[%clk 00:03:33]} {[%emt 00:00:01]}
Rc7 {[%clk 00:04:17]} {[%emt 00:00:03]} 29. Ke3 {[%clk 00:02:08]} {[%emt
00:01:31]} Ka7 {[%clk 00:04:14]} {[%emt 00:00:08]} 30. Nd3 {[%clk 00:02:11]}
{[%emt 00:00:01]} Nxd3 {[%clk 00:04:04]} {[%emt 00:00:16]} 31. Kxd3 {[%clk
00:02:15]} {[%emt 00:00:01]} Rf8 {[%clk 00:04:03]} {[%emt 00:00:05]} 32. Ke3
{[%clk 00:02:17]} {[%emt 00:00:04]} Rcf7 {[%clk 00:04:06]} {[%emt 00:00:02]} 33.
Rxe6 {[%clk 00:02:09]} {[%emt 00:00:13]} Rxf3+ {[%clk 00:04:09]} {[%emt
00:00:01]} 34. Kd4 {[%clk 00:02:13]} {[%emt 00:00:01]} R8f7 {[%clk 00:04:05]}
{[%emt 00:00:10]} 35. Re8 {[%clk 00:01:33]} {[%emt 00:00:46]} Rh3 {[%clk
00:03:54]} {[%emt 00:00:15]} 36. Kd5 {[%clk 00:01:35]} {[%emt 00:00:03]} Rxh2
{[%clk 00:03:54]} {[%emt 00:00:05]} 37. e5 {[%clk 00:01:38]} {[%emt 00:00:02]}
Rd2+ {[%clk 00:02:04]} {[%emt 00:01:54]} 38. Ke6 {[%clk 00:01:14]} {[%emt
00:00:30]} Rdd7 {[%clk 00:01:39]} {[%emt 00:00:30]} 39. Rg4 {[%clk 00:00:32]}
{[%emt 00:00:46]} a5 {[%clk 00:01:33]} {[%emt 00:00:12]} 40. a4 {[%clk
00:00:13]} {[%emt 00:00:24]} Rc7 {[%clk 00:01:28]} {[%emt 00:00:09]} 41. Rd8
{[%clk 00:00:15]} {[%emt 00:00:03]} Rf2 {[%clk 00:01:17]} {[%emt 00:00:16]} 42.
Rgd4 {[%clk 00:00:08]} {[%emt 00:00:12]} Rxb2 {[%clk 00:01:10]} {[%emt
00:00:13]} 43. Kd6 {[%clk 00:00:07]} {[%emt 00:00:05]} Rc6+ {[%clk 00:01:08]}
{[%emt 00:00:07]} 44. Kd5 {[%clk 00:00:10]} {[%emt 00:00:03]} Re2 {[%clk
00:00:56]} {[%emt 00:00:16]} 45. Rd6 {[%clk 00:00:14]} Rc7 {[%clk 00:00:50]}
{[%emt 00:00:11]} 46. e6 {[%clk 00:00:18]} {[%emt 00:00:01]} Re7 {[%clk
00:00:43]} {[%emt 00:00:12]} 47. Re4 {[%clk 00:00:23]} Rxe4 {[%clk 00:00:41]}
{[%emt 00:00:06]} 48. Kxe4 {[%clk 00:00:28]} Kb8 {[%clk 00:00:45]} 49. Kf5
{[%clk 00:00:11]} {[%emt 00:00:21]} Kc7 {[%clk 00:00:47]} {[%emt 00:00:04]} 50.
Rd5 {[%clk 00:00:12]} {[%emt 00:00:04]} g4 {[%clk 00:00:34]} {[%emt 00:00:18]}
51. Rxa5 {[%clk 00:00:10]} {[%emt 00:00:07]} g3 {[%clk 00:00:30]} {[%emt
00:00:09]} 52. Re5 {[%clk 00:00:09]} {[%emt 00:00:06]} g2 {[%clk 00:00:29]}
{[%emt 00:00:07]} 53. Re1 {[%clk 00:00:13]} Re8 {[%clk 00:00:27]} {[%emt
00:00:07]} 54. Rg1 {[%clk 00:00:17]} {[%emt 00:00:01]} Kd6 {[%clk 00:00:29]}
{[%emt 00:00:03]} 55. Rd1+ {[%clk 00:00:20]} {[%emt 00:00:03]} Ke7 {[%clk
00:00:32]} {[%emt 00:00:01]} 56. Rg1 {[%clk 00:00:20]} {[%emt 00:00:04]} Rf8+
{[%clk 00:00:36]} 57. Ke5 {[%clk 00:00:14]} {[%emt 00:00:11]} Rf2 {[%clk
00:00:40]} {[%emt 00:00:02]} 58. Rb1 {[%clk 00:00:18]} {[%emt 00:00:01]} Re2+
{[%clk 00:00:43]} {[%emt 00:00:02]} 59. Kf5 {[%clk 00:00:22]} {[%emt 00:00:01]}
Rf2+ {[%clk 00:00:36]} {[%emt 00:00:12]} 60. Ke5 {[%clk 00:00:22]} {[%emt
00:00:05]} Re2+ {[%clk 00:00:37]} {[%emt 00:00:03]} 61. Kf5 {[%clk 00:00:27]}
g6+ {[%clk 00:00:41]} 62. Kf4 {[%clk 00:00:28]} {[%emt 00:00:04]} Kxe6 {[%clk
00:00:37]} {[%emt 00:00:09]} 63. Kf3 {[%clk 00:00:33]} Rb2 {[%clk 00:00:38]}
{[%emt 00:00:04]} 64. Re1+ {[%clk 00:00:34]} {[%emt 00:00:04]} Ke5 {[%emt
00:00:05]} 0-1

[Event "Open NK Rapid 2025"]
[Site "Helmond, Netherlands"]
[Date "2025.05.03"]
[Round "6.3"]
[White "Cernov, Vadim"]
[Black "Roebers, Eline"]
[Result "1/2-1/2"]
[TimeControl "15+5"]
[WhiteFideId "1210629"]
[BlackFideId "1058401"]
[WhiteElo "2320"]
[BlackElo "2390"]

1. e4 {[%clk 00:15:07]} {[%emt 00:00:02]} c5 {[%clk 00:15:09]} {[%emt
00:00:01]} 2. Nf3 {[%clk 00:15:11]} {[%emt 00:00:01]} e6 {[%clk 00:15:14]}
{[%emt 00:00:01]} 3. g3 {[%clk 00:15:12]} {[%emt 00:00:03]} Nc6 {[%clk
00:15:05]} {[%emt 00:00:14]} 4. Bg2 {[%clk 00:15:16]} {[%emt 00:00:01]} Nf6
{[%clk 00:14:48]} {[%emt 00:00:22]} 5. Qe2 {[%clk 00:15:16]} {[%emt 00:00:04]}
e5 {[%clk 00:14:53]} {[%emt 00:00:01]} 6. O-O {[%clk 00:15:12]} {[%emt
00:00:09]} Be7 {[%clk 00:14:55]} {[%emt 00:00:03]} 7. Nc3 {[%clk 00:15:15]} O-O
{[%clk 00:14:54]} {[%emt 00:00:07]} 8. Nd5 {[%clk 00:15:12]} {[%emt 00:00:08]}
Nxd5 {[%clk 00:14:22]} {[%emt 00:00:36]} 9. exd5 {[%clk 00:15:15]} {[%emt
00:00:02]} Nd4 {[%clk 00:14:26]} 10. Nxd4 {[%clk 00:15:14]} {[%emt 00:00:06]}
exd4 {[%clk 00:14:30]} {[%emt 00:00:02]} 11. c4 {[%clk 00:14:19]} {[%emt
00:00:59]} d6 {[%clk 00:14:23]} {[%emt 00:00:13]} 12. d3 {[%clk 00:14:17]}
{[%emt 00:00:07]} a6 {[%clk 00:13:55]} {[%emt 00:00:32]} 13. a4 {[%clk
00:13:47]} {[%emt 00:00:36]} Rb8 {[%clk 00:12:49]} {[%emt 00:01:11]} 14. Re1
{[%clk 00:13:12]} {[%emt 00:00:39]} 1/2-1/2

[Event "Open NK Rapid 2025"]
[Site "Helmond, Netherlands"]
[Date "2025.05.03"]
[Round "6.4"]
[White "Madularea, David"]
[Black "Sydykov, Bayastan"]
[Result "0-1"]
[TimeControl "15+5"]
[WhiteFideId "1070215"]
[BlackFideId "13829610"]
[WhiteElo "1921"]
[BlackElo "2297"]

1. d4 {[%clk 00:15:08]} {[%emt 00:00:02]} Nf6 {[%clk 00:15:07]} {[%emt
00:00:02]} 2. Nf3 {[%clk 00:15:12]} {[%emt 00:00:02]} d5 {[%clk 00:15:10]}
{[%emt 00:00:03]} 3. c4 {[%clk 00:15:16]} {[%emt 00:00:01]} e6 {[%clk
00:15:13]} {[%emt 00:00:01]} 4. Qc2 {[%clk 00:15:20]} {[%emt 00:00:01]} Nbd7
{[%clk 00:14:50]} {[%emt 00:00:28]} 5. cxd5 {[%clk 00:15:23]} {[%emt 00:00:02]}
exd5 {[%clk 00:14:54]} {[%emt 00:00:01]} 6. Bf4 {[%clk 00:15:27]} {[%emt
00:00:01]} c6 {[%clk 00:14:56]} {[%emt 00:00:04]} 7. Nc3 {[%clk 00:15:30]} Nh5
{[%clk 00:14:42]} {[%emt 00:00:19]} 8. Bd2 {[%clk 00:14:33]} {[%emt 00:01:02]}
Bd6 {[%clk 00:14:28]} {[%emt 00:00:20]} 9. e3 {[%clk 00:13:22]} {[%emt
00:01:15]} O-O {[%clk 00:13:25]} {[%emt 00:01:08]} 10. Bd3 {[%clk 00:13:18]}
{[%emt 00:00:10]} Ndf6 {[%clk 00:12:58]} {[%emt 00:00:32]} 11. Ne5 {[%clk
00:12:49]} {[%emt 00:00:34]} Re8 {[%clk 00:12:14]} {[%emt 00:00:49]} 12. f4
{[%clk 00:12:47]} {[%emt 00:00:06]} g6 {[%clk 00:12:11]} {[%emt 00:00:09]} 13.
O-O-O {[%clk 00:09:40]} {[%emt 00:03:11]} c5 {[%clk 00:08:11]} {[%emt
00:04:06]} 14. Bb5 {[%clk 00:08:38]} {[%emt 00:01:06]} Re7 {[%clk 00:05:15]}
{[%emt 00:03:02]} 15. dxc5 {[%clk 00:05:43]} {[%emt 00:03:00]} Bxc5 {[%clk
00:04:41]} {[%emt 00:00:38]} 16. e4 {[%clk 00:05:23]} {[%emt 00:00:25]} dxe4
{[%clk 00:02:51]} {[%emt 00:01:55]} 17. g4 {[%clk 00:04:08]} {[%emt 00:01:20]}
Bxg4 {[%clk 00:02:16]} {[%emt 00:00:40]} 18. Nxg4 {[%clk 00:03:57]} {[%emt
00:00:16]} Nxg4 {[%clk 00:02:20]} {[%emt 00:00:02]} 19. Nxe4 {[%clk 00:03:58]}
{[%emt 00:00:03]} Rxe4 {[%clk 00:02:11]} {[%emt 00:00:15]} 20. Qxe4 {[%clk
00:03:40]} {[%emt 00:00:23]} Nf2 {[%clk 00:02:14]} {[%emt 00:00:02]} 21. Qe5
{[%clk 00:03:25]} {[%emt 00:00:19]} Bd4 {[%clk 00:01:45]} {[%emt 00:00:35]} 22.
Qe2 {[%clk 00:02:35]} {[%emt 00:00:54]} Nxh1 {[%clk 00:01:48]} {[%emt
00:00:03]} 23. Bc3 {[%clk 00:02:15]} {[%emt 00:00:25]} Nxf4 {[%clk 00:01:35]}
{[%emt 00:00:18]} 24. Qe4 {[%clk 00:02:15]} {[%emt 00:00:04]} Ne6 {[%clk
00:01:26]} {[%emt 00:00:15]} 25. Qxb7 {[%clk 00:00:54]} {[%emt 00:01:26]} Rb8
{[%clk 00:01:13]} {[%emt 00:00:17]} 26. Qc6 {[%clk 00:00:36]} {[%emt 00:00:23]}
Nf2 {[%clk 00:00:43]} {[%emt 00:00:36]} 27. Rf1 {[%clk 00:00:14]} {[%emt
00:00:26]} Qg5+ {[%clk 00:00:42]} {[%emt 00:00:07]} 28. Kb1 {[%clk 00:00:18]}
Rxb5 {[%clk 00:00:35]} {[%emt 00:00:12]} 29. Bxd4 {[%clk 00:00:10]} {[%emt
00:00:12]} Qf5+ {[%clk 00:00:39]} {[%emt 00:00:01]} 30. Ka1 {[%clk 00:00:13]}
{[%emt 00:00:02]} Nxd4 {[%clk 00:00:42]} {[%emt 00:00:03]} 31. Qc3 {[%clk
00:00:11]} {[%emt 00:00:07]} Nb3+ {[%clk 00:00:34]} {[%emt 00:00:13]} 0-1

[Event "Open NK Rapid 2025"]
[Site "Helmond, Netherlands"]
[Date "2025.05.03"]
[Round "6.5"]
[White "Beeke, Bob"]
[Black "Grooten, Tommy"]
[Result "1/2-1/2"]
[TimeControl "15+5"]
[WhiteFideId "1011634"]
[BlackFideId "1068806"]
[WhiteElo "2217"]
[BlackElo "2027"]

1. d4 {[%clk 00:15:09]} {[%emt 00:00:01]} Nf6 {[%clk 00:14:59]} {[%emt
00:00:11]} 2. Nf3 {[%clk 00:15:12]} {[%emt 00:00:01]} e6 {[%clk 00:15:00]}
{[%emt 00:00:05]} 3. c4 {[%clk 00:15:15]} {[%emt 00:00:02]} c5 {[%clk
00:15:03]} {[%emt 00:00:02]} 4. g3 {[%clk 00:15:16]} {[%emt 00:00:03]} cxd4
{[%clk 00:15:03]} {[%emt 00:00:05]} 5. Nxd4 {[%clk 00:15:20]} {[%emt 00:00:01]}
Be7 {[%clk 00:15:03]} {[%emt 00:00:05]} 6. Nc3 {[%clk 00:15:17]} {[%emt
00:00:09]} a6 {[%clk 00:15:05]} {[%emt 00:00:03]} 7. Bg2 {[%clk 00:15:20]}
{[%emt 00:00:02]} O-O {[%clk 00:15:08]} {[%emt 00:00:02]} 8. O-O {[%clk
00:15:22]} {[%emt 00:00:03]} d6 {[%clk 00:14:57]} {[%emt 00:00:17]} 9. b3
{[%clk 00:15:12]} {[%emt 00:00:14]} Qc7 {[%clk 00:14:58]} {[%emt 00:00:04]} 10.
Bb2 {[%clk 00:15:15]} {[%emt 00:00:03]} Bd7 {[%clk 00:15:01]} {[%emt 00:00:02]}
11. Rc1 {[%clk 00:15:14]} {[%emt 00:00:05]} Nc6 {[%clk 00:14:59]} {[%emt
00:00:07]} 12. Nd5 {[%clk 00:14:43]} {[%emt 00:00:36]} Qd8 {[%clk 00:14:40]}
{[%emt 00:00:24]} 13. Nxe7+ {[%clk 00:14:40]} {[%emt 00:00:09]} Qxe7 {[%clk
00:14:43]} {[%emt 00:00:02]} 14. Nc2 {[%clk 00:14:18]} {[%emt 00:00:26]} Rfd8
{[%clk 00:14:28]} {[%emt 00:00:20]} 15. Ne3 {[%clk 00:14:07]} {[%emt 00:00:15]}
Rac8 {[%clk 00:13:45]} {[%emt 00:00:48]} 16. Qd2 {[%clk 00:14:11]} {[%emt
00:00:02]} e5 {[%clk 00:11:51]} {[%emt 00:02:00]} 17. Rfd1 {[%clk 00:13:49]}
{[%emt 00:00:26]} Be6 {[%clk 00:11:50]} {[%emt 00:00:06]} 18. Ba3 {[%clk
00:13:50]} {[%emt 00:00:03]} Nd4 {[%clk 00:11:51]} {[%emt 00:00:05]} 19. Nc2
{[%clk 00:13:24]} {[%emt 00:00:31]} Nxc2 {[%clk 00:11:25]} {[%emt 00:00:31]} 20.
Rxc2 {[%clk 00:13:27]} {[%emt 00:00:02]} Bf5 {[%clk 00:10:13]} {[%emt
00:01:17]} 21. Rcc1 {[%clk 00:12:58]} {[%emt 00:00:34]} Ne4 {[%clk 00:08:41]}
{[%emt 00:01:37]} 22. Qd3 {[%clk 00:12:01]} {[%emt 00:01:02]} Nxf2 {[%clk
00:08:39]} {[%emt 00:00:08]} 23. Qxf5 {[%clk 00:12:04]} {[%emt 00:00:01]} Nxd1
{[%clk 00:08:43]} {[%emt 00:00:02]} 24. Rxd1 {[%clk 00:12:08]} b5 {[%clk
00:08:42]} {[%emt 00:00:07]} 25. Rxd6 {[%clk 00:11:12]} {[%emt 00:01:01]} bxc4
{[%clk 00:07:41]} {[%emt 00:01:05]} 26. Rxd8+ {[%clk 00:10:59]} {[%emt
00:00:18]} Qxd8 {[%clk 00:07:45]} 27. Bd5 {[%clk 00:10:42]} {[%emt 00:00:22]}
c3 {[%clk 00:06:42]} {[%emt 00:01:08]} 28. Bxf7+ {[%clk 00:09:59]} {[%emt
00:00:48]} Kh8 {[%clk 00:06:46]} {[%emt 00:00:02]} 29. Bc4 {[%clk 00:09:56]}
{[%emt 00:00:07]} Qd4+ {[%clk 00:05:27]} {[%emt 00:01:24]} 30. Kg2 {[%clk
00:09:41]} {[%emt 00:00:19]} Rd8 {[%clk 00:05:10]} {[%emt 00:00:23]} 31. Bd3
{[%clk 00:09:30]} {[%emt 00:00:17]} e4 {[%clk 00:04:35]} {[%emt 00:00:39]} 32.
Bc5 {[%clk 00:06:46]} {[%emt 00:02:49]} Qd5 {[%clk 00:03:21]} {[%emt 00:01:19]}
33. Qxe4 {[%clk 00:06:12]} {[%emt 00:00:39]} Qxe4+ {[%clk 00:03:20]} {[%emt
00:00:07]} 34. Bxe4 {[%clk 00:06:16]} Rd2 {[%clk 00:02:51]} {[%emt 00:00:35]}
35. Kf2 {[%clk 00:05:03]} {[%emt 00:01:17]} Rxa2 {[%clk 00:02:51]} {[%emt
00:00:05]} 36. Ke3 {[%clk 00:03:35]} {[%emt 00:01:33]} c2 {[%clk 00:02:06]}
{[%emt 00:00:51]} 37. Kd2 {[%clk 00:03:37]} {[%emt 00:00:01]} c1=Q+ {[%clk
00:02:09]} {[%emt 00:00:03]} 38. Kxc1 {[%clk 00:03:41]} Rxe2 {[%clk 00:02:12]}
{[%emt 00:00:02]} 39. Bd3 {[%clk 00:03:38]} {[%emt 00:00:08]} Rxh2 {[%clk
00:02:09]} {[%emt 00:00:08]} 40. Bxa6 {[%clk 00:03:41]} {[%emt 00:00:02]} Rh3
{[%clk 00:02:13]} {[%emt 00:00:02]} 41. Bf2 {[%clk 00:03:14]} {[%emt 00:00:31]}
h5 {[%clk 00:01:50]} {[%emt 00:00:28]} 42. b4 {[%clk 00:03:00]} {[%emt
00:00:20]} g5 {[%clk 00:01:41]} {[%emt 00:00:13]} 43. Kd2 {[%clk 00:02:36]}
{[%emt 00:00:29]} h4 {[%clk 00:00:41]} {[%emt 00:01:06]} 44. gxh4 {[%clk
00:02:35]} {[%emt 00:00:05]} g4 {[%clk 00:00:45]} 45. Bc8 {[%clk 00:02:34]}
{[%emt 00:00:07]} Rb3 {[%clk 00:00:40]} {[%emt 00:00:09]} 46. Bxg4 {[%clk
00:01:41]} {[%emt 00:00:58]} Rxb4 {[%clk 00:00:44]} {[%emt 00:00:02]} 47. Bf3
{[%clk 00:01:36]} {[%emt 00:00:09]} Rb2+ {[%clk 00:00:48]} 1/2-1/2

[Event "Open NK Rapid 2025"]
[Site "Helmond, Netherlands"]
[Date "2025.05.03"]
[Round "6.6"]
[White "Ritzerveld, Noah"]
[Black "Bok, Benjamin"]
[Result "0-1"]
[TimeControl "15+5"]
[WhiteFideId "1085760"]
[BlackFideId "1017063"]
[WhiteElo "2053"]
[BlackElo "2583"]

1. e4 {[%clk 00:15:09]} {[%emt 00:00:01]} c5 {[%clk 00:15:09]} {[%emt
00:00:01]} 2. Nf3 {[%clk 00:15:12]} {[%emt 00:00:02]} d6 {[%clk 00:15:13]}
{[%emt 00:00:01]} 3. d4 {[%clk 00:15:16]} {[%emt 00:00:01]} cxd4 {[%clk
00:15:17]} {[%emt 00:00:01]} 4. Nxd4 {[%clk 00:15:19]} {[%emt 00:00:02]} Nf6
{[%clk 00:15:21]} {[%emt 00:00:01]} 5. Nc3 {[%clk 00:15:22]} {[%emt 00:00:02]}
a6 {[%clk 00:15:24]} {[%emt 00:00:02]} 6. f3 {[%clk 00:15:23]} {[%emt
00:00:03]} e5 {[%clk 00:15:25]} {[%emt 00:00:05]} 7. Nb3 {[%clk 00:15:26]}
{[%emt 00:00:02]} Be6 {[%clk 00:15:27]} {[%emt 00:00:02]} 8. Be3 {[%clk
00:15:29]} {[%emt 00:00:02]} Be7 {[%clk 00:15:25]} {[%emt 00:00:07]} 9. Qd2
{[%clk 00:15:32]} {[%emt 00:00:03]} O-O {[%clk 00:15:28]} {[%emt 00:00:02]} 10.
O-O-O {[%clk 00:15:29]} {[%emt 00:00:08]} Nbd7 {[%clk 00:15:31]} {[%emt
00:00:01]} 11. g4 {[%clk 00:15:32]} {[%emt 00:00:03]} b5 {[%clk 00:15:35]}
{[%emt 00:00:01]} 12. g5 {[%clk 00:15:34]} {[%emt 00:00:02]} Nh5 {[%clk
00:15:38]} {[%emt 00:00:02]} 13. Kb1 {[%clk 00:14:46]} {[%emt 00:00:53]} Nb6
{[%clk 00:15:41]} {[%emt 00:00:03]} 14. Nd5 {[%clk 00:14:05]} {[%emt 00:00:45]}
Nxd5 {[%clk 00:15:35]} {[%emt 00:00:12]} 15. exd5 {[%clk 00:14:07]} {[%emt
00:00:03]} Bf5 {[%clk 00:15:38]} {[%emt 00:00:02]} 16. Na5 {[%clk 00:12:57]}
{[%emt 00:01:14]} f6 {[%clk 00:15:41]} {[%emt 00:00:02]} 17. Nc6 {[%clk
00:12:49]} {[%emt 00:00:14]} Qd7 {[%clk 00:15:43]} {[%emt 00:00:03]} 18. gxf6
{[%clk 00:10:55]} {[%emt 00:01:58]} Bxf6 {[%clk 00:15:12]} {[%emt 00:00:36]} 19.
Bd3 {[%clk 00:10:33]} {[%emt 00:00:27]} Rf7 {[%clk 00:12:32]} {[%emt 00:02:45]}
20. Rhg1 {[%clk 00:09:56]} {[%emt 00:00:43]} Bxd3 {[%clk 00:10:59]} {[%emt
00:01:38]} 21. Qxd3 {[%clk 00:09:57]} {[%emt 00:00:04]} Qh3 {[%clk 00:09:34]}
{[%emt 00:01:30]} 22. Qe4 {[%clk 00:08:42]} {[%emt 00:01:20]} Bd8 {[%clk
00:05:41]} {[%emt 00:03:58]} 23. Rdf1 {[%clk 00:07:19]} {[%emt 00:01:26]} Bc7
{[%clk 00:05:06]} {[%emt 00:00:42]} 24. Rf2 {[%clk 00:05:43]} {[%emt 00:01:40]}
Raf8 {[%clk 00:04:33]} {[%emt 00:00:39]} 25. Rgf1 {[%clk 00:05:43]} {[%emt
00:00:05]} Nf6 {[%clk 00:03:06]} {[%emt 00:01:32]} 26. Qd3 {[%clk 00:05:41]}
{[%emt 00:00:06]} Nd7 {[%clk 00:02:44]} {[%emt 00:00:28]} 27. Qe4 {[%clk
00:04:41]} {[%emt 00:01:04]} Bb6 {[%clk 00:02:43]} {[%emt 00:00:07]} 28. Bxb6
{[%clk 00:03:27]} {[%emt 00:01:19]} Nxb6 {[%clk 00:02:46]} {[%emt 00:00:02]} 29.
f4 {[%clk 00:02:54]} {[%emt 00:00:38]} Rxf4 {[%clk 00:02:03]} {[%emt 00:00:48]}
30. Ne7+ {[%clk 00:02:06]} {[%emt 00:00:53]} Kh8 {[%clk 00:02:05]} {[%emt
00:00:03]} 31. Qe1 {[%clk 00:01:55]} {[%emt 00:00:15]} Qxf1 {[%clk 00:01:15]}
{[%emt 00:00:55]} 32. Qxf1 {[%clk 00:01:59]} {[%emt 00:00:01]} Rxf2 {[%clk
00:01:19]} {[%emt 00:00:02]} 33. Ng6+ {[%clk 00:02:02]} hxg6 {[%clk 00:01:23]}
{[%emt 00:00:02]} 34. Qh3+ {[%clk 00:02:06]} {[%emt 00:00:01]} Kg8 {[%clk
00:01:27]} 35. Qe6+ {[%clk 00:02:00]} {[%emt 00:00:10]} R8f7 {[%clk 00:01:14]}
{[%emt 00:00:18]} 36. b3 {[%clk 00:01:53]} {[%emt 00:00:13]} R2f6 {[%clk
00:01:13]} {[%emt 00:00:06]} 37. Qe8+ {[%clk 00:01:54]} {[%emt 00:00:04]} Kh7
{[%clk 00:00:46]} {[%emt 00:00:31]} 38. Qc6 {[%clk 00:01:56]} {[%emt 00:00:02]}
Nd7 {[%clk 00:00:46]} {[%emt 00:00:06]} 39. Qxa6 {[%clk 00:01:59]} {[%emt
00:00:02]} e4 {[%clk 00:00:39]} {[%emt 00:00:12]} 40. Qxb5 {[%clk 00:02:01]}
{[%emt 00:00:03]} e3 {[%clk 00:00:34]} {[%emt 00:00:11]} 41. Qe2 {[%clk
00:01:27]} {[%emt 00:00:39]} Re7 {[%clk 00:00:36]} {[%emt 00:00:02]} 0-1